Cogmind - Beta 10.2 @@@ ROGUE MODE // 2021.10.02 @ 16:53:07 Player: youngster Result: Destroyed by YI-UF0 with YI-UF0's Doublenader Performance ------------- Evolutions (0) 0 Regions Visited (2) 400 Robots Destroyed (21) 105 Value Destroyed (554) 554 Prototype IDs (0) 0 Alien Tech Used (0) 0 Bonus (-40) -40 TOTAL SCORE: 1019 Bonus ------- Friendly Fire -40 Cogmind --------- Core Integrity 0/250 Matter 270/300 Energy 112/140 System Corruption 2% Temperature Cool (0) Movement Hovering (76) Location -10/Mines Parts ------- > --- POWER (1) -------- Light Deuterium Engine > --- PROPULSION (2) --- Combat Airjet Combat Airjet > --- UTILITY (2) ------ High-capacity Storage Unit Propulsion Shielding > --- WEAPON (2) ------- Light Cannon Mini Grenade Launcher > --- INVENTORY (12) --- Light Nuclear Core Combat Airjet Improved Heat Sink Large Battery (300) Sensor Array Improved Terrain Scanner Seismic Analyzer Autogun Autogun Grenade Launcher Peak State ------------ > --- POWER ------------ Light Deuterium Engine > --- PROPULSION ------- Combat Airjet Combat Airjet > --- UTILITY ---------- High-capacity Storage Unit Core Shielding > --- WEAPON ----------- Autogun Mini Grenade Launcher > --- INVENTORY -------- Light Nuclear Core Combat Airjet Improved Heat Sink Large Battery Improved Terrain Scanner Seismic Analyzer Propulsion Shielding Light Armor Plating Autogun Autogun Light Cannon Grenade Launcher [Rating: 21] Favorites ----------- Power Light Ion Engine Engine Light Ion Engine Power Core Light Nuclear Core Propulsion Light Treads Treads Light Treads Wheel Wheel Hover Unit Combat Airjet Utility Core Shielding Storage High-capacity Storage Unit Protection Core Shielding Weapon Medium Laser Energy Gun Medium Laser Ballistic Gun Assault Rifle Ballistic Cannon Light Cannon Launcher Mini Grenade Launcher Build | -11 -10 -10 ------- Run | Scr Mat Min Slots Evolved . | . . . Power . | . . . Propulsion . | . . . Utility . | . . . Weapon . | . . . Parts Attached 26 | 6 9 11 Power 4 | 1 2 1 Engine 3 | 1 1 1 Core 1 | . 1 . Reactor . | . . . Propulsion 7 | 2 2 3 Treads 4 | 2 1 1 Leg . | . . . Wheel 1 | . 1 . Hover 2 | . . 2 Flight . | . . . Utility 4 | 1 2 1 Device . | . . . Storage 2 | 1 1 . Processor . | . . . Hackware . | . . . Protection 2 | . 1 1 Artifact . | . . . Weapon 11 | 2 3 6 Energy Gun 1 | 1 . . Energy Cannon . | . . . Ballistic Gun 3 | 1 2 . Ballistic Cannon 4 | . 1 3 Launcher 3 | . . 3 Special Weapon . | . . . Impact Weapon . | . . . Slashing Weapon . | . . . Piercing Weapon . | . . . Special Melee Weapon . | . . . Unidentified Prototypes . | . . . Parts Lost 7 | . 3 4 Power 3 | . 2 1 Propulsion 2 | . 1 1 Utility 1 | . . 1 Weapon 1 | . . 1 Highest Loss Streak 2 | . 2 2 Average Slot Usage (%) 98 | . 98 98 Engine 9 | . 8 11 Core 4 | . 5 2 Treads 19 | . 22 12 Wheel 4 | . 5 . Hover 3 | . . 15 Storage 14 | . 14 14 Protection 13 | . 13 14 Energy Gun 6 | . 8 . Ballistic Gun 13 | . 14 13 Ballistic Cannon 5 | . 5 6 Launcher 1 | . . 7 Naked Turns . | . . . Heaviest Build 44 | 10 44 44 Greatest Support 44 | 40 40 44 Greatest Overweight (x) 4 | . 4 1 Average Overweight (x) 1 | . 1 . Largest Inventory Capacity 12 | 6 12 12 Average Capacity 9 | 5 9 12 Most Carried 12 | 5 12 12 Average Carried 7 | 3 7 11 Final Capacity 12 | 6 12 12 Final Carried 12 | 5 12 10 Class Distribution -------------------- 86% | Mutant 13% | Scavenger-Mutant Dominant Class ---------------- Mutant | -10/Materials Scavenger-Mutant | -10/Mines Resources | -11 -10 -10 ----------- Run | Scr Mat Min Matter Collected 727 | 268 227 232 Remotely . | . . . Salvage Created 738 | 125 371 242 Parts 52 | 9 29 14 Haulers Intercepted 2 | . 2 . Recyclers Shooed . | . . . Parts Field Recycled . | . . . Retrieved Matter . | . . . Parts Self-Destructed . | . . . Prevented . | . . . Kills | -11 -10 -10 ------- Run | Scr Mat Min Combat Hostiles Destroyed 17 | . 5 12 Guns 5 | . 5 . Cannons 5 | . . 5 AOE 7 | . . 7 Classes Destroyed 9 | 2 5 2 Worker 1 | . 1 . Tunneler 3 | 3 . . Hauler 2 | . 2 . Recycler 1 | 1 . . Operator 1 | . 1 . Watcher 2 | . 2 . Grunt 9 | . 5 4 Demolisher 2 | . . 2 Assembled 6 | . . 6 Best Kill Streak 7 | 2 2 7 Combat Bots Only 7 | . 2 7 Max Kills in Single Turn 1 | 1 1 1 Gunslinging . | . . . Exploded 1 | . . 1 Melee . | . . . Uniques/NPCs Destroyed . | . . . Combat | -11 -10 -10 -------- Run | Scr Mat Min Damage Taken 1372 | . 581 791 Core 250 | . 59 191 Absorbed by Shields . | . . . Core Remaining (%) 100 | 100 . . Volleys Fired 66 | 8 39 19 Largest 2 | 2 2 2 Hottest 70 | 70 70 58 Shots Fired 122 | 16 78 28 Gun 89 | 16 64 9 Cannon 23 | . 14 9 Launcher 10 | . . 10 Special . | . . . Kinetic 79 | 8 53 18 Thermal 33 | 8 25 . Explosive 10 | . . 10 Electromagnetic . | . . . Robot Hit Streak 16 | 13 16 5 Robot Miss Streak 3 | 1 3 2 Penetration Max . | . . . Secondary Targets 1 | . 1 . Max Gunslinging Chain 1 | . 1 . Shots Hit Robots 83 | 13 54 16 Core Hits 53 | 7 21 25 Critical Hits . | . . . Critical Kills . | . . . Critical Parts Destroyed . | . . . Melee Attacks . | . . . Impact . | . . . Slashing . | . . . Piercing . | . . . Sneak Attacks . | . . . Combat Hostiles . | . . . Follow-up Attacks . | . . . Damage Inflicted 1516 | 149 720 647 Guns 750 | 149 526 75 Cannons 318 | . 184 134 Explosions 438 | . . 438 Melee . | . . . Ramming 10 | . 10 . Kinetic 768 | 48 511 209 Thermal 364 | 101 199 64 Explosive 374 | . . 374 Electromagnetic . | . . . Impact . | . . . Slashing . | . . . Piercing . | . . . Highest Corruption 2 | . . 2 Average Corruption 2 | . . 2 Corruption Purged . | . . . Effects 1 | . . 1 Message Errors 1 | . . 1 Overload Shots . | . . . Overflow Damage 40 | . 17 23 Projectiles 17 | . 17 . Explosions 23 | . . 23 Melee . | . . . Knockbacks 2 | . 2 . Impact . | . . . Kinetic 2 | . 2 . Secondary . | . . . Self-Inflicted Damage 157 | . . 157 Shots 4 | . . 4 Rammed 2 | . 2 . Targets Rammed 2 | . 2 . Kicked . | . . . Crushed . | . . . Highest Temperature 216 | 70 216 70 Average Temperature 50 | 27 61 28 Received Heat Transfer 330 | . 276 54 Siege Activations . | . . . Robots Corrupted . | . . . Combat Hostiles . | . . . Parts Fried . | . . . Impact Corruptions . | . . . Robots Melted . | . . . Combat Hostiles . | . . . Parts Melted 2 | . 2 . Heat Transferred 988 | 296 592 100 Parts Sabotaged . | . . . Parts Stolen . | . . . Parts Stripped . | . . . Power Chain Reactions . | . . . Missiles Intercepted . | . . . Alert | -11 -10 -10 ------- Run | Scr Mat Min Peak Influence 178 | 20 145 178 Initial 13 | . 13 . Average 65 | 8 64 108 Maximum Alert Level . | . . . Low Security (%) 100 | 100 100 100 Level 1 . | . . . Level 2 . | . . . Level 3 . | . . . Level 4 . | . . . Level 5 . | . . . High Security . | . . . Max Security . | . . . Squads Dispatched 1 | . 1 . Investigation . | . . . Extermination . | . . . Reinforcement 1 | . 1 . Assault . | . . . Garrison . | . . . Intercept . | . . . Construction Impeded . | . . . Haulers Reinforced . | . . . Stealth | -11 -10 -10 --------- Run | Scr Mat Min Distress Signals . | . . . Communications Jammed . | . . . Distress Signals . | . . . Times Spotted 33 | . 14 19 Peak Tracking Total 10 | . 4 10 Tactical Retreats 1 | . 1 . Traps | -11 -10 -10 ------- Run | Scr Mat Min Traps Triggered 2 | . 2 . Indirectly . | . . . Trap Hack Attempts . | . . . Triggered . | . . . Disarmed . | . . . Reprogrammed . | . . . Reused . | . . . Traps Extracted . | . . . Installed . | . . . Triggered . | . . . Machines | -11 -10 -10 ---------- Run | Scr Mat Min Machines Disabled 1 | . . 1 Max in Single Turn 1 | . . 1 Machines Sabotaged . | . . . Garrisons Compromised . | . . . Overloaded Fab Kills . | . . . Fab Network Shutdowns . | . . . Hacking | -11 -10 -10 --------- Run | Scr Mat Min Machines Accessed 5 | . 5 . Terminals 4 | . 4 . Fabricators . | . . . Repair Stations 1 | . 1 . Recycling Units . | . . . Scanalyzers . | . . . Garrison Access . | . . . Total Hacks 15 | . 15 . Successful 11 | . 11 . Failed 4 | . 4 . Catastrophic . | . . . Database Lockouts . | . . . Manual 11 | . 11 . Terminals 13 | . 13 . Fabricators . | . . . Repair Stations 2 | . 2 . Recycling Units . | . . . Scanalyzers . | . . . Garrison Access . | . . . Terminal Hacks 2 | . 2 . Branch Access Points 1 | . 1 . Zone Layout 1 | . 1 . Fabricator Hacks . | . . . Repair Station Hacks 2 | . 2 . Scan Component 1 | . 1 . Repair 1 | . 1 . Recycling Unit Hacks . | . . . Scanalyzer . | . . . Garrison Access Hacks . | . . . Unauthorized Hacks 7 | . 7 . Terminals 7 | . 7 . Track 2 | . 2 . Botnet 3 | . 3 . Disrupt 1 | . 1 . Operators 1 | . 1 . Fabricators . | . . . Repair Stations . | . . . Recycling Units . | . . . Scanalyzers . | . . . Garrison Access . | . . . Data Cores Recovered . | . . . Used . | . . . Hacking Detections 5 | . 5 . Full Trace Events . | . . . Feedback Events . | . . . Feedback Blocked . | . . . Robot Schematics Acquired . | . . . Robots Built . | . . . Matter . | . . . Time . | . . . Total Robot Build Rating . | . . . Part Schematics Acquired . | . . . Parts Built . | . . . Matter . | . . . Time . | . . . Total Part Build Rating . | . . . Parts Repaired 1 | . 1 . Time 26 | . 26 . Parts Recycled . | . . . Recycled Matter . | . . . Retrieved Matter . | . . . Retrieved Components . | . . . Parts Scanalyzed . | . . . Part Schematics Acquired . | . . . Parts Damaged . | . . . Bothacking | -11 -10 -10 ------------ Run | Scr Mat Min Used RIF Installer . | . . . Robots Hacked . | . . . Non-combat . | . . . Combat . | . . . Robot Hacks Applied . | . . . Relay Couplers Released . | . . . Robots Rewired . | . . . Allies Hacked . | . . . Hacks Repelled . | . . . Allies | -11 -10 -10 -------- Run | Scr Mat Min Total Allies 1 | . . 1 Largest Group 1 | . . 1 Highest-Rated Group 31 | . . 31 Highest-Rated Ally 31 | . . 31 Total Orders . | . . . Ally Attacks 5 | . . 5 Total Damage 43 | . . 43 Kills 1 | . . 1 Allies Corrupted . | . . . Allies Melted . | . . . Intel | -11 -10 -10 ------- Run | Scr Mat Min Robot Analysis Total . | . . . Derelict Logs Recovered . | . . . Drone Launches . | . . . Drone Recoveries . | . . . Exploration | -11 -10 -10 ------------- Run | Scr Mat Min Turns Passed 1319 | 172 894 253 Spaces Moved 733 | 87 454 192 Core 3 | 3 . . Treads 354 | 84 232 38 Legs . | . . . Wheels 222 | . 222 . Hover 154 | . . 154 Flight . | . . . Fastest Speed 50 | 50 110 76 Average Speed 131 | 156 140 97 Slowest Speed 200 | 160 200 180 Overloaded Moves . | . . . Propulsion Burnouts . | . . . Robots Hopped . | . . . Cave-ins Triggered . | . . . Exploration Rate (%) 43 | 6 75 48 Regions Visited 2 Branch Regions 1 Pre-discovered Areas 1 | . . 1 Known Exits Taken 1 | . 1 . Unknown Exits Taken 1 | 1 . . Scrap Searched 1 | . . 1 Spaces Dug . | . . . Terrain Destroyed 74 | . . 74 Melee . | . . . Projectile . | . . . AOE 74 | . . 74 Terrain Rammed . | . . . Walls Destroyed . | . . . Machines Disabled . | . . . Actions | -11 -10 -10 --------- Run | Scr Mat Min Total 970 | 106 633 231 Wait 110 | . 110 . Move 731 | 86 453 192 Hop . | . . . Pick Up 23 | 6 13 4 Fast Attach 11 | 5 3 3 Attach 6 | 1 2 3 Detach . | . . . Swap 9 | . 4 5 Drop 12 | . 7 5 Fire 66 | 8 39 19 Melee . | . . . Ram . | . . . Kick . | . . . Crush 2 | . 2 . Escape Stasis . | . . . Rewire . | . . . Trap . | . . . Miscellaneous . | . . . Route ------- -11/Scrapyard -10/Materials (discovered 2 exits: *Min x2) -10/Mines (discovered 1 exit: [*Mat]) History --------- Turn | Location | Event 11 | -11/Scrapyard | Discovered new exit (range 15) 173 | -11/Scrapyard | Entered Materials 305 | -10/Materials | Build established: Mutant 403 | -10/Materials | Discovered new exit (range 14) 451 | -10/Materials | Identified exit to Mines 828 | -10/Materials | Repaired Lgt. Treads 1067 | -10/Materials | Entered Mines 1068 | -10/Mines | Assembled infested the area 1075 | -10/Mines | Core integrity fell below 50% 1088 | -10/Mines | Core integrity fell below 20% 1124 | -10/Mines | Destroyed 7 combat bots 1126 | -10/Mines | Discovered new exit (range 5) 1137 | -10/Mines | Escorted by a lone wolf Derelict 1157 | -10/Mines | Learned location of Storage (-8) 1320 | -10/Mines | Destroyed by YI-UF0 with YI-UF0's Doublenader Last Messages --------------- 01192_ Acquired Cmb. Airjet. 01194_ as-67344 destroyed. 01195_ The unstable cave ceiling collapses. 01196_ Acquired 42 matter. 01197_ The unstable cave ceiling collapses. 01222_ K-01 Serf collects debris. 01254_ Plasma Injector explodes. 01258_ G-47 Trooper destroyed. 01262_ Acquired 28 matter. 01276_ Searching scrap... 01276_ Found Sensor Array. 01276_ Found Lrg. Matter Pod. 01276_ Found Med. Matter Pod. 01276_ Found Welding Torch. 01276_ Found 30 Matter. 01276_ Dropped Lgt. Armor Plating. 01278_ Acquired Sensor Array. 01317_ as-06265 destroyed. 01318_ Autogun destroyed. 01318_ Core Shielding destroyed. Map ----- +----------------------------------------------------+ | | | | | | | | | | | ?????????????????????????????????????????????????? | | ?????????????????????????????????????????????????? | | ?????????????????????????????????????????????????? | | ?????????????????????????????????????????????????? | | ?????????????????????????????????????????????????? | | ?????????????????????????????????????????????????? | | ?????????????????????????????????????????????????? | | ?????????????????????????????????????????????????? | | ??????????????????????????????####??????????####?? | | ?????????????????????????????## ###????????# ### | | ????????????????????????????## ##???##### | | ???????????????????????????## #???#!%| """ | | ??????????????????????????## #???#!#### """ | | ??????????????????????????# #????#!#??# """ | | ???????????????????????##?# ## #????# #??# | | ?????????????????????### # ### #????# #??# | | ?????????????????????# #?# ###### #??# | | ?????????????????????# #?# #??## | | ?????????????????????# #?##########???#### | | ?????????????????????# #?????????????????? | | ?????????????????????# @ #?????????????????? | | ????????????????????# ????????? | | ????????????????????## = #######????????#### | | ????????????????????# % ####?????????????????? | | ????????????????????## ##????????????????????? | | ?????????????????????# = ?????????????????????? | | ?????????????????????# ?????????????????????? | | ????????????????????? ##????????????????????? | | ????????????????????# % ##?????????????????????? | | ????????????????????# ???????????????????????? | | ????????????????????# = ???????????????????????? | | ????????????????????*g% ???????????????????????? | | ????????????????????| ???????????????????????? | | ???????????????????#!=# ???????????????????????? | | ????????????????????? % ???????????????????????? | | ??????????????????????? #???????????????????????? | | ?????????????????????????????????????????????????? | | ?????????????????????????????????????????????????? | | ?????????????????????????????????????????????????? | | ?????????????????????????????????????????????????? | | ?????????????????????????????????????????????????? | | ?????????????????????????????????????????????????? | | ?????????????????????????????????????????????????? | | ?????????????????????????????????????????????????? | | ?????????????????????????????????????????????????? | +----------------------------------------------------+ Best States ------------- Heat Dissipation 25 Energy Generation 14 Energy Capacity 160 Matter Stores 300 Matter Capacity 300 Sight Range 16 Terrain Scan Density 10 Core Shielding 20 Propulsion Shielding 33 Evasion (%) 49 Recoil Reduction 2 Item Schematics ----------------- None Robot Schematics ------------------ None Fabricated ------------ Nothing Alien Tech Used ----------------- None Achievements -------------- None Challenges ------------ None Game ------ Seed ArcNeutralizingPurifier Manual? 0 Play Time 00:30:40 Cumulative 99.0 hours Start 2021.10.02 @ 16:19:26 End 2021.10.02 @ 16:53:07 Sessions 1 Manual Loads 0 Difficulty Rogue Special Mode None Game No. 68 Rogue 68 Adventurer 0 Explorer 0 Win Type - Total 1 Types 0/0/0/1/0/0/0/0/0 Lore% 64 Gallery% 73 Achievement% 48 Wizard Run 0 Options --------- ASCII 0 Keyboard 1 Movement Vi Keybinds 0 Fullscreen 2 Font 18/Cog Map View 76x50 Tactical HUD 1 Map Filters NONE Filters NONE Steam 0 RUN: e57717a3-5427-4119-8b90-e8259bb68f38